[Event "WYCC 2018 G14"]
[Site "Halkidiki"]
[Date "2018.10.23"]
[Round "5"]
[White "Anghel, Maria"]
[Black "Hrebenshchykova, Yelyzaveta"]
[Result "0-1"]
[ECO "A48"]
[WhiteElo "1801"]
[BlackElo "1968"]
[Annotator "NA"]
[PlyCount "132"]
[EventDate "2018.10.20"]
[EventType "swiss"]
[EventCountry "GRE"]
[SourceTitle "playchess.com"]
[Source "ChessBase"]
[SourceQuality "1"]
[TimeControl "40/5400+30:1800+30"]

1. d4 {[%emt 0:00:00]} Nf6 {[%emt 0:00:00]} 2. Nf3 {[%emt 0:00:00]} g6 {[%emt 0:00:00]} 3. c4 {[%emt 0:00:00]} Bg7 {[%emt 0:00:00]} 4. g3 {[%emt 0:00:05]} O-O {[%emt 0:00:03]} 5. Bg2 $11 {[%emt 0:00:07]} d6 {[%emt 0:00:16]} 6. O-O {[%emt 0:00:17]} c6 {[%emt 0:00:29]} 7. Nc3 {[%emt 0:00:54]} Qb6 {[%emt 0:00:18]} 8. e4 {[%emt 0:07:20]} Bg4 {[%emt 0:00:58]} 9. h3 {[%emt 0:08:35]} Bxf3 {[%emt 0:00:15]} 10. Bxf3 {[%emt 0:01:07]} Nfd7 {[%emt 0:00:27]} 11. Be3 {[%emt 0:10:30]} Qxb2 {[%emt 0:06:59]} 12. Qd3 {[%emt 0:12:18]} Qb6 {[%emt 0:18:03]} 13. Rab1 {[%emt 0:05:43]} Qc7 {[%emt 0:03:17]} 14. Bg2 {[%emt 0:03:15]} Na6 {[%emt 0:08:11]} 15. f4 {[%emt 0:05:50]} f5 {[%emt 0:10:30]} 16. e5 {[%emt 0:05:59]} dxe5 {[%emt 0:08:38]} 17. fxe5 {[%emt 0:02:09]} e6 {[%emt 0:01:18]} 18. Ne2 {[%emt 0:08:01]} Rab8 {[%emt 0:05:40]} 19. Nf4 {[%emt 0:03:00]} Rfe8 {[%emt 0:00:32]} 20. g4 {[%emt 0:05:51]} fxg4 {[%emt 0:15:53]} 21. hxg4 {[%emt 0:02:38]} Nf8 {[%emt 0:00:18]} 22. Rbe1 {[%emt 0:11:19]} Qd7 {[%emt 0:10:47]} 23. Be4 {[%emt 0:03:34]} Rbd8 {[%emt 0:03:17]} 24. Qe2 {[%emt 0:01:15]} Nc7 {[%emt 0:04:07]} 25. Nh3 {[%emt 0:01:57]} c5 {[%emt 0:01:18]} 26. dxc5 {[%emt 0:00:41]} Bxe5 {[%emt 0:00:10]} 27. Rd1 {[%emt 0:00:32]} Qg7 {[%emt 0:01:01]} 28. Ng5 {[%emt 0:00:29]} Bf6 {[%emt 0:00:38]} 29. Nf3 {[%emt 0:00:25]} Na6 {[%emt 0:00:33]} 30. g5 {[%emt 0:00:33]} Bc3 {[%emt 0:00:05]} 31. Rc1 {[%emt 0:00:32]} Bb4 {[%emt 0:00:45]} 32. Qf2 {[%emt 0:00:25]} Nd7 {[%emt 0:00:30]} 33. c6 {[%emt 0:00:35]} bxc6 {[%emt 0:00:26]} 34. Bxc6 {[%emt 0:00:08]} Rf8 {[%emt 0:00:33]} 35. Bd4 {[%emt 0:00:50]} e5 {[%emt 0:00:37]} 36. Bd5+ {[%emt 0:00:25]} Kh8 {[%emt 0:00:06]} 37. Nxe5 {[%emt 0:00:37]} Rxf2 {[%emt 0:00:59]} 38. Nxg6+ {[%emt 0:00:19]} hxg6 {[%emt 0:00:23]} 39. Bxg7+ {[%emt 0:00:36]} Kxg7 {[%emt 0:00:06]} 40. Kxf2 {[%emt 0:00:00]} Ne5 {[%emt 0:00:00]} 41. Kg2 {[%emt 0:03:29]} Nc5 {[%emt 0:08:10]} 42. a3 {[%emt 0:07:55]} Bd2 {[%emt 0:04:34]} 43. Rb1 {[%emt 0:06:11]} Bxg5 {[%emt 0:03:01]} 44. Rb5 {[%emt 0:01:25]} Be7 {[%emt 0:03:52]} 45. Re1 {[%emt 0:03:32]} Kf6 {[%emt 0:00:16]} 46. Rf1+ {[%emt 0:03:28]} Kg5 {[%emt 0:02:56]} 47. Re1 {[%emt 0:02:14]} Ncd3 {[%emt 0:03:06]} 48. Re3 {[%emt 0:02:52]} Bf6 {[%emt 0:06:05]} 49. Kg3 {[%emt 0:02:55]} Kh6 {[%emt 0:03:08]} 50. Rb7 {[%emt 0:01:17]} Bg5 {[%emt 0:00:27]} 51. Re2 {[%emt 0:00:40]} Bf4+ {[%emt 0:00:25]} 52. Kg2 {[%emt 0:00:28]} a6 {[%emt 0:00:48]} 53. Rb6 {[%emt 0:00:32]} Nc5 {[%emt 0:00:23]} 54. Reb2 {[%emt 0:00:38]} Kg5 {[%emt 0:00:43]} 55. Rb1 {[%emt 0:00:29]} Re8 {[%emt 0:00:34]} 56. Rb8 {[%emt 0:00:29]} Re7 {[%emt 0:00:11]} 57. R8b6 {[%emt 0:00:24]} Ng4 {[%emt 0:00:43]} 58. R6b2 {[%emt 0:00:34]} Nd3 {[%emt 0:00:19]} 59. Ra2 {[%emt 0:00:34]} Rh7 {[%emt 0:00:40]} 60. Rh1 {[%emt 0:00:28]} Ne3+ {[%emt 0:00:30]} 61. Kg1 {[%emt 0:00:20]} Re7 {[%emt 0:00:30]} 62. Bg2 {[%emt 0:00:42]} Nc1 63. Ra1 {[%emt 0:00:29]} Nc2 {[%emt 0:01:06]} 64. Rb1 {[%emt 0:00:30]} Re1+ {[%emt 0:00:08]} 65. Kf2 {[%emt 0:00:07]} Nd3+ {[%emt 0:00:12]} 66. Kf3 {[%emt 0:00:50]} Nd4# {[%emt 0:00:08]} 0-1

[Event "WYCC 2018 G14"]
[Site "Halkidiki"]
[Date "2018.10.23"]
[Round "5"]
[White "Zhou, Iris"]
[Black "Dylag, Emilia"]
[Result "1/2-1/2"]
[ECO "B92"]
[WhiteElo "1779"]
[BlackElo "2059"]
[Annotator "NA"]
[PlyCount "87"]
[EventDate "2018.10.20"]
[EventType "swiss"]
[EventCountry "GRE"]
[SourceTitle "playchess.com"]
[Source "ChessBase"]
[SourceQuality "1"]
[TimeControl "40/5400+30:1800+30"]

1. e4 {[%emt 0:00:00]} c5 {[%emt 0:00:00]} 2. Nf3 {[%emt 0:00:00]} d6 {[%emt 0:00:00]} 3. d4 {[%emt 0:00:00]} cxd4 {[%emt 0:00:01]} 4. Nxd4 {[%emt 0:00:00]} Nf6 {[%emt 0:00:15]} 5. Nc3 $11 {[%emt 0:00:00] LiveBook: 99691 Games} a6 {[%emt 0:00:20]} 6. Be2 {[%emt 0:00:09]} e5 {[%emt 0:00:20]} 7. Nb3 {[%emt 0:00:06]} Be7 {[%emt 0:00:16]} 8. O-O {[%emt 0:00:17]} O-O {[%emt 0:00:27]} 9. Be3 {[%emt 0:00:19]} Be6 {[%emt 0:00:17]} 10. Nd5 {[%emt 0:00:18]} Nbd7 {[%emt 0:00:21]} 11. Qd3 {[%emt 0:00:17]} Bxd5 {[%emt 0:00:47]} 12. exd5 {[%emt 0:00:08]} Nc5 {[%emt 0:00:49]} 13. Nxc5 {[%emt 0:03:42]} dxc5 {[%emt 0:00:09]} 14. c4 {[%emt 0:01:39]} e4 {[%emt 0:00:30]} 15. Qc2 {[%emt 0:05:48]} Qc7 {[%emt 0:08:03]} 16. Rfd1 {[%emt 0:03:19]} Bd6 {[%emt 0:01:06]} 17. h3 {[%emt 0:01:21]} Rae8 {[%emt 0:00:58]} 18. Rac1 {[%emt 0:15:52]} Nd7 {[%emt 0:02:46]} 19. b4 {[%emt 0:05:09]} f5 {[%emt 0:04:53]} 20. bxc5 {[%emt 0:03:43]} Nxc5 {[%emt 0:01:38]} 21. Bd4 {[%emt 0:03:58]} Qe7 {[%emt 0:15:23]} 22. Qc3 {[%emt 0:05:55]} Qg5 {[%emt 0:10:47]} 23. Bf1 {[%emt 0:13:11]} h5 {[%emt 0:14:47]} 24. Rb1 {[%emt 0:06:02]} Rf7 {[%emt 0:01:57]} 25. Qa5 {[%emt 0:07:18]} Qe7 {[%emt 0:13:17]} 26. Rb6 {[%emt 0:03:14]} Rc8 {[%emt 0:07:05]} 27. Rdb1 {[%emt 0:05:33]} e3 {[%emt 0:08:33]} 28. Bxe3 {[%emt 0:03:20]} Qe5 {[%emt 0:01:12]} 29. g3 {[%emt 0:00:33]} Qe7 {[%emt 0:03:07]} 30. Bxc5 {[%emt 0:05:46]} Bxc5 {[%emt 0:00:46]} 31. Rxb7 {[%emt 0:00:53]} Qe5 {[%emt 0:02:59]} 32. Rxf7 {[%emt 0:05:01]} Qxg3+ {[%emt 0:01:03]} 33. Kh1 {[%emt 0:00:36]} Qxf2 {[%emt 0:00:41]} 34. Rxg7+ {[%emt 0:00:17]} Kxg7 {[%emt 0:00:13]} 35. Bg2 {[%emt 0:00:44]} Kh7 {[%emt 0:01:09]} 36. Qe1 {[%emt 0:01:35]} Qd4 {[%emt 0:00:29]} 37. Rb7+ {[%emt 0:01:11]} Kh8 {[%emt 0:00:24]} 38. Qc1 {[%emt 0:00:27]} Qe3 {[%emt 0:00:38]} 39. Qxe3 {[%emt 0:01:11]} Bxe3 {[%emt 0:00:06]} 40. Rb3 {[%emt 0:00:00]} Bd4 {[%emt 0:00:00]} 41. Bf1 {[%emt 0:04:37]} Rg8 {[%emt 0:05:03]} 42. Bg2 {[%emt 0:01:06]} Rc8 {[%emt 0:00:41]} 43. Rb4 {[%emt 0:01:56]} a5 {[%emt 0:04:32]} 44. Ra4 1/2-1/2

[Event "WYCC 2018 G14"]
[Site "Halkidiki"]
[Date "2018.10.23"]
[Round "5"]
[White "Vuong, Quynh Anh"]
[Black "Matus, Nastassja"]
[Result "0-1"]
[ECO "A05"]
[WhiteElo "1747"]
[BlackElo "1983"]
[Annotator "NA"]
[PlyCount "112"]
[EventDate "2018.10.20"]
[EventType "swiss"]
[EventCountry "GRE"]
[SourceTitle "playchess.com"]
[Source "ChessBase"]
[SourceQuality "1"]
[TimeControl "40/5400+30:1800+30"]

1. Nf3 {[%emt 0:00:00]} Nf6 {[%emt 0:00:00]} 2. g3 {[%emt 0:00:00]} d5 {[%emt 0:00:00]} 3. Bg2 {[%emt 0:00:00]} Bf5 {[%emt 0:00:50]} 4. c4 {[%emt 0:00:22]} c6 {[%emt 0:03:25]} 5. cxd5 {[%emt 0:00:48]} cxd5 {[%emt 0:02:01]} 6. O-O {[%emt 0:02:59]} g6 {[%emt 0:05:00]} 7. d4 {[%emt 0:02:41]} Bg7 {[%emt 0:01:28]} 8. Nc3 $11 {[%emt 0:02:57]} Nc6 {[%emt 0:17:43]} 9. Qb3 {[%emt 0:05:00]} Na5 {[%emt 0:04:31]} 10. Qa4+ {[%emt 0:00:45]} Bd7 {[%emt 0:01:43]} 11. Qd1 {[%emt 0:00:13]} O-O {[%emt 0:01:15]} 12. Ne5 {[%emt 0:00:09]} Be6 {[%emt 0:09:11]} 13. Be3 {[%emt 0:00:46]} Rc8 {[%emt 0:02:42]} 14. Rc1 {[%emt 0:01:12]} a6 {[%emt 0:15:16]} 15. f4 {[%emt 0:05:40]} Nc4 {[%emt 0:05:29]} 16. Bf2 {[%emt 0:00:31]} b5 {[%emt 0:05:48]} 17. b3 {[%emt 0:00:22]} Nd6 {[%emt 0:00:45]} 18. Nd3 {[%emt 0:04:00]} Nde4 {[%emt 0:07:00]} 19. Nxe4 {[%emt 0:03:43]} Nxe4 {[%emt 0:01:33]} 20. Nc5 {[%emt 0:07:13]} Nxf2 {[%emt 0:02:48]} 21. Rxf2 {[%emt 0:00:39]} Qd6 {[%emt 0:01:21]} 22. e3 {[%emt 0:00:38]} Rc6 {[%emt 0:02:27]} 23. b4 {[%emt 0:00:22]} Rfc8 {[%emt 0:00:44]} 24. Rfc2 {[%emt 0:00:10]} Bf6 {[%emt 0:02:48]} 25. Rc3 {[%emt 0:00:24]} h5 {[%emt 0:02:32]} 26. Qb3 {[%emt 0:00:10]} h4 {[%emt 0:01:31]} 27. Kf2 {[%emt 0:00:21]} Kg7 {[%emt 0:01:13]} 28. Nxe6+ {[%emt 0:01:04]} fxe6 {[%emt 0:00:19]} 29. Rc5 {[%emt 0:00:22]} Kf7 {[%emt 0:00:59]} 30. Qc2 {[%emt 0:00:58]} Rxc5 {[%emt 0:00:09]} 31. bxc5 {[%emt 0:00:10]} Qc6 {[%emt 0:00:32]} 32. Bf3 {[%emt 0:01:12]} Rh8 {[%emt 0:00:39]} 33. g4 {[%emt 0:02:04]} g5 {[%emt 0:01:04]} 34. fxg5 {[%emt 0:00:19]} Bxg5 {[%emt 0:00:09]} 35. Rf1 {[%emt 0:00:14]} Kg7 {[%emt 0:00:48]} 36. Qb3 {[%emt 0:02:49]} Qc7 {[%emt 0:00:45]} 37. Kg1 {[%emt 0:00:18]} Qa5 {[%emt 0:01:03]} 38. Rd1 {[%emt 0:03:23]} Rf8 {[%emt 0:00:40]} 39. e4 {[%emt 0:01:36]} dxe4 {[%emt 0:00:35]} 40. Bxe4 {[%emt 0:00:00]} Rf6 {[%emt 0:00:00]} 41. Kh1 {[%emt 0:17:50]} Qc7 {[%emt 0:14:46]} 42. Bg2 {[%emt 0:09:34]} Qd7 {[%emt 0:08:12]} 43. c6 {[%emt 0:00:50]} Qc7 {[%emt 0:01:21]} 44. d5 {[%emt 0:05:24]} e5 {[%emt 0:01:02]} 45. Qa3 {[%emt 0:00:12]} a5 {[%emt 0:00:51]} 46. Qc5 {[%emt 0:00:56]} b4 {[%emt 0:00:26]} 47. Qb5 {[%emt 0:00:50]} Rf8 {[%emt 0:00:41]} 48. Qc5 {[%emt 0:04:20]} Rf6 {[%emt 0:00:32]} 49. a3 {[%emt 0:00:25]} b3 {[%emt 0:03:21]} 50. Qb5 {[%emt 0:00:56]} h3 {[%emt 0:01:59]} 51. Bxh3 {[%emt 0:00:34]} Rf3 {[%emt 0:02:22]} 52. Bg2 {[%emt 0:03:07]} Rc3 {[%emt 0:00:09]} 53. Rb1 {[%emt 0:00:47]} a4 {[%emt 0:00:25]} 54. Qxa4 {[%emt 0:02:08]} b2 {[%emt 0:00:09]} 55. Be4 {[%emt 0:01:50]} Qb6 {[%emt 0:00:24]} 56. Bc2 {[%emt 0:15:57]} Qf2 {[%emt 0:00:25]} 0-1

[Event "WYCC 2018 G14"]
[Site "Halkidiki"]
[Date "2018.10.23"]
[Round "5"]
[White "Zaritovskaja, Margarita"]
[Black "Randrianarimanana, Alicia"]
[Result "1-0"]
[ECO "E81"]
[WhiteElo "1731"]
[BlackElo "1947"]
[Annotator "NA"]
[PlyCount "129"]
[EventDate "2018.10.20"]
[EventType "swiss"]
[EventCountry "GRE"]
[SourceTitle "playchess.com"]
[Source "ChessBase"]
[SourceQuality "1"]
[TimeControl "40/5400+30:1800+30"]

1. d4 {[%emt 0:00:00]} Nf6 {[%emt 0:00:00]} 2. c4 {[%emt 0:00:00]} g6 {[%emt 0:00:00]} 3. Nc3 {[%emt 0:00:00]} Bg7 {[%emt 0:00:00]} 4. e4 {[%emt 0:00:00]} d6 {[%emt 0:00:00]} 5. f3 {[%emt 0:00:00]} O-O {[%emt 0:00:00]} 6. Bg5 $11 {[%emt 0:00:03]} Nc6 {[%emt 0:00:26]} 7. Qd2 {[%emt 0:02:02]} a6 {[%emt 0:00:45]} 8. Nge2 {[%emt 0:04:30]} Na5 {[%emt 0:02:10]} 9. Ng3 {[%emt 0:03:50]} c5 {[%emt 0:00:14]} 10. d5 {[%emt 0:01:41]} Re8 {[%emt 0:00:19]} 11. Bd3 {[%emt 0:02:17]} Rb8 {[%emt 0:00:52]} 12. O-O {[%emt 0:02:08]} Bd7 {[%emt 0:11:01]} 13. f4 {[%emt 0:11:00]} b5 {[%emt 0:10:24]} 14. h3 {[%emt 0:13:47]} bxc4 {[%emt 0:02:17]} 15. Bc2 {[%emt 0:00:58]} h6 {[%emt 0:23:42]} 16. Bh4 {[%emt 0:00:09]} Qc7 {[%emt 0:15:18]} 17. Rae1 {[%emt 0:06:46]} Nh7 {[%emt 0:01:12]} 18. e5 {[%emt 0:08:20]} dxe5 {[%emt 0:13:49]} 19. fxe5 {[%emt 0:01:01]} Bxe5 {[%emt 0:03:14]} 20. Qxh6 {[%emt 0:11:15]} Bg7 {[%emt 0:04:17]} 21. Qd2 {[%emt 0:00:58]} f5 {[%emt 0:05:25]} 22. Nge2 {[%emt 0:04:55]} Qb7 {[%emt 0:04:06]} 23. Nd1 {[%emt 0:03:42]} Qb4 {[%emt 0:00:34]} 24. Nec3 {[%emt 0:02:53]} e5 {[%emt 0:00:56]} 25. dxe6 {[%emt 0:02:32]} Bxe6 {[%emt 0:00:07]} 26. Ba4 {[%emt 0:00:15]} Bd4+ {[%emt 0:01:10]} 27. Kh1 {[%emt 0:00:38]} Qb7 {[%emt 0:00:23]} 28. Bxe8 {[%emt 0:00:30]} Rxe8 {[%emt 0:00:00]} 29. Qh6 {[%emt 0:01:59]} Qg7 {[%emt 0:00:01]} 30. Qxg7+ {[%emt 0:00:45]} Kxg7 {[%emt 0:00:01]} 31. Bf2 {[%emt 0:00:59]} Nc6 {[%emt 0:00:26]} 32. Nd5 {[%emt 0:03:04]} Kf7 {[%emt 0:00:31]} 33. Nc7 {[%emt 0:00:25]} Re7 {[%emt 0:00:05]} 34. Nxe6 {[%emt 0:00:12]} Rxe6 {[%emt 0:00:01]} 35. Rxe6 Kxe6 {[%emt 0:00:01]} 36. Re1+ {[%emt 0:00:34]} Kf6 {[%emt 0:00:15]} 37. Re8 {[%emt 0:03:13]} Ng5 {[%emt 0:02:47]} 38. Ra8 {[%emt 0:01:55]} Kf7 {[%emt 0:01:24]} 39. Rxa6 {[%emt 0:00:36]} Nb4 {[%emt 0:00:13]} 40. Ra4 {[%emt 0:00:00]} Bxf2 {[%emt 0:00:00]} 41. Nxf2 {[%emt 0:00:57]} Nd3 {[%emt 0:01:27]} 42. Nd1 {[%emt 0:03:04]} Ne5 {[%emt 0:00:09]} 43. Ne3 {[%emt 0:01:13]} c3 {[%emt 0:02:02]} 44. bxc3 {[%emt 0:01:55]} Ne4 {[%emt 0:00:27]} 45. Nc4 {[%emt 0:04:39]} Nxc4 {[%emt 0:02:30]} 46. Rxc4 {[%emt 0:00:09]} Ke6 {[%emt 0:00:03]} 47. a4 {[%emt 0:05:54]} Kd5 {[%emt 0:00:19]} 48. a5 {[%emt 0:00:43]} Kc6 {[%emt 0:04:07]} 49. a6 {[%emt 0:01:22]} Kb6 {[%emt 0:00:53]} 50. Ra4 {[%emt 0:00:36]} Ka7 {[%emt 0:00:10]} 51. Ra5 {[%emt 0:02:22]} g5 {[%emt 0:04:58]} 52. Kg1 {[%emt 0:00:44]} g4 {[%emt 0:00:29]} 53. h4 {[%emt 0:01:06]} f4 {[%emt 0:04:23]} 54. h5 {[%emt 0:01:11]} Nxc3 {[%emt 0:00:25]} 55. Rxc5 {[%emt 0:00:31]} Ne2+ {[%emt 0:00:49]} 56. Kf2 {[%emt 0:00:25]} Ng3 {[%emt 0:00:05]} 57. Rc7+ {[%emt 0:02:58]} Kxa6 {[%emt 0:00:07]} 58. h6 {[%emt 0:00:08]} Ne4+ {[%emt 0:00:58]} 59. Ke1 {[%emt 0:00:09]} g3 {[%emt 0:01:54]} 60. h7 {[%emt 0:00:59]} f3 {[%emt 0:00:56]} 61. gxf3 {[%emt 0:00:26]} Ng5 {[%emt 0:01:38]} 62. h8=Q {[%emt 0:00:53]} Nxf3+ {[%emt 0:00:19]} 63. Kf1 {[%emt 0:00:07]} g2+ {[%emt 0:01:13]} 64. Kxg2 {[%emt 0:00:05]} Ne1+ {[%emt 0:00:21]} 65. Kf1 {[%emt 0:00:05]} 1-0

[Event "WYCC 2018 G14"]
[Site "Halkidiki"]
[Date "2018.10.23"]
[Round "5"]
[White "Yedigaryan, Asya"]
[Black "Lomaia, Diana"]
[Result "1/2-1/2"]
[ECO "B07"]
[WhiteElo "1726"]
[BlackElo "1876"]
[Annotator "NA"]
[PlyCount "103"]
[EventDate "2018.10.20"]
[EventType "swiss"]
[EventCountry "GRE"]
[SourceTitle "playchess.com"]
[Source "ChessBase"]
[SourceQuality "1"]
[TimeControl "40/5400+30:1800+30"]

1. d4 {[%emt 0:00:00]} Nf6 {[%emt 0:00:00]} 2. Nc3 {[%emt 0:00:00]} g6 {[%emt 0:00:26]} 3. e4 {[%emt 0:00:00]} d6 {[%emt 0:00:22]} 4. Be2 {[%emt 0:00:00]} Bg7 {[%emt 0:00:15]} 5. h4 {[%emt 0:00:00]} h5 {[%emt 0:01:08]} 6. Nf3 {[%emt 0:00:05]} O-O {[%emt 0:03:37]} 7. Bg5 {[%emt 0:00:09]} c6 {[%emt 0:04:27]} 8. Qd2 {[%emt 0:05:54]} Qc7 {[%emt 0:05:00]} 9. O-O-O {[%emt 0:01:26]} b5 {[%emt 0:02:09]} 10. e5 {[%emt 0:13:48]} Ng4 {[%emt 0:04:35]} 11. exd6 {[%emt 0:07:03]} exd6 {[%emt 0:01:39]} 12. Bd3 {[%emt 0:00:16]} Nd7 {[%emt 0:16:41]} 13. Ne4 {[%emt 0:07:12]} Ndf6 {[%emt 0:02:09]} 14. Nxf6+ {[%emt 0:04:30]} Nxf6 {[%emt 0:01:26]} 15. Bh6 {[%emt 0:12:58]} Bg4 {[%emt 0:11:21]} 16. Bxg7 {[%emt 0:01:26]} Kxg7 {[%emt 0:00:02]} 17. Rde1 {[%emt 0:06:26]} Rfe8 {[%emt 0:06:01]} 18. Ng5 {[%emt 0:04:09]} Qd7 {[%emt 0:04:34]} 19. f3 {[%emt 0:05:35]} Bf5 {[%emt 0:01:50]} 20. Bxf5 {[%emt 0:04:17]} Qxf5 {[%emt 0:00:17]} 21. Reg1 {[%emt 0:02:39]} Qd5 {[%emt 0:01:36]} 22. Kb1 {[%emt 0:02:19]} Qc4 {[%emt 0:02:02]} 23. Re1 {[%emt 0:00:07]} c5 {[%emt 0:06:55]} 24. dxc5 {[%emt 0:03:51]} dxc5 {[%emt 0:00:23]} 25. b3 {[%emt 0:01:02]} Qd5 {[%emt 0:01:03]} 26. Qc3 {[%emt 0:01:49]} b4 {[%emt 0:01:20]} 27. Qb2 {[%emt 0:00:33]} Rad8 {[%emt 0:04:18]} 28. Ne4 {[%emt 0:04:50]} Qe5 {[%emt 0:03:19]} 29. Qxe5 {[%emt 0:01:36]} Rxe5 {[%emt 0:00:02]} 30. Nxf6 {[%emt 0:00:22]} Kxf6 {[%emt 0:02:50]} 31. Rxe5 {[%emt 0:03:53]} Kxe5 {[%emt 0:00:02]} 32. Re1+ {[%emt 0:00:05]} Kf4 {[%emt 0:09:15]} 33. Re7 {[%emt 0:01:17]} Rf8 {[%emt 0:00:33]} 34. Rxa7 {[%emt 0:02:01]} Kg3 {[%emt 0:00:02]} 35. Rc7 {[%emt 0:03:00]} Kxg2 {[%emt 0:00:06]} 36. Rxc5 {[%emt 0:00:04]} Kxf3 {[%emt 0:00:41]} 37. c3 {[%emt 0:01:20]} bxc3 {[%emt 0:00:23]} 38. Rxc3+ {[%emt 0:00:04]} Ke4 {[%emt 0:01:25]} 39. b4 {[%emt 0:01:50]} Kd4 {[%emt 0:00:33]} 40. Kb2 {[%emt 0:00:00]} f5 {[%emt 0:00:00]} 41. Rf3 {[%emt 0:02:22]} f4 {[%emt 0:04:12]} 42. Kb3 {[%emt 0:00:13]} Ke4 {[%emt 0:01:03]} 43. Rf1 {[%emt 0:00:10]} f3 {[%emt 0:03:51]} 44. b5 {[%emt 0:00:27]} Kd5 {[%emt 0:13:19]} 45. Kb4 {[%emt 0:10:44]} f2 {[%emt 0:01:03]} 46. a4 {[%emt 0:00:23]} Rf4+ {[%emt 0:04:33]} 47. Ka5 {[%emt 0:00:18]} Kc5 {[%emt 0:00:25]} 48. Rc1+ {[%emt 0:00:27]} Kd5 {[%emt 0:01:47]} 49. Rf1 {[%emt 0:00:42]} Kc5 {[%emt 0:00:07]} 50. Rc1+ {[%emt 0:00:03]} Kd5 {[%emt 0:00:39]} 51. Rd1+ {[%emt 0:00:07]} Kc5 {[%emt 0:00:40]} 52. Rc1+ {[%emt 0:00:04]} 1/2-1/2

[Event "WYCC 2018 G14"]
[Site "Halkidiki"]
[Date "2018.10.23"]
[Round "5"]
[White "Kostina, Veronika"]
[Black "Kasaeva, Sofiia"]
[Result "1-0"]
[ECO "B22"]
[WhiteElo "1700"]
[BlackElo "1874"]
[Annotator "NA"]
[PlyCount "59"]
[EventDate "2018.10.20"]
[EventType "swiss"]
[EventCountry "GRE"]
[SourceTitle "playchess.com"]
[Source "ChessBase"]
[SourceQuality "1"]
[TimeControl "40/5400+30:1800+30"]

1. e4 {[%emt 0:00:00]} c5 {[%emt 0:00:00]} 2. c3 {[%emt 0:00:00]} Nf6 {[%emt 0:00:00]} 3. e5 {[%emt 0:00:11]} Nd5 {[%emt 0:00:00]} 4. d4 {[%emt 0:00:28]} cxd4 {[%emt 0:00:07]} 5. Nf3 {[%emt 0:00:54]} e6 {[%emt 0:01:18]} 6. cxd4 {[%emt 0:00:32]} d6 {[%emt 0:01:09]} 7. Bc4 {[%emt 0:02:39]} Nb6 {[%emt 0:00:16]} 8. Bb5+ {[%emt 0:07:19]} Bd7 {[%emt 0:01:48]} 9. Bxd7+ {[%emt 0:06:15]} Qxd7 {[%emt 0:01:23]} 10. O-O {[%emt 0:05:16]} Be7 {[%emt 0:02:48]} 11. Nc3 {[%emt 0:06:21]} O-O {[%emt 0:05:53]} 12. Bf4 {[%emt 0:05:55]} Nc6 {[%emt 0:14:38]} 13. Rc1 {[%emt 0:08:39]} Rac8 {[%emt 0:19:05]} 14. Re1 {[%emt 0:15:42]} Nb4 {[%emt 0:02:47]} 15. a3 {[%emt 0:11:32]} N4d5 {[%emt 0:02:36]} 16. Bg3 {[%emt 0:04:37]} Nxc3 {[%emt 0:01:06]} 17. bxc3 {[%emt 0:00:11]} dxe5 {[%emt 0:04:24]} 18. Nxe5 {[%emt 0:03:23]} Qd5 {[%emt 0:02:09]} 19. Qd3 {[%emt 0:06:24]} Qb3 {[%emt 0:10:03]} 20. a4 {[%emt 0:04:29]} Nxa4 {[%emt 0:13:00]} 21. Rb1 {[%emt 0:00:53]} Qd5 {[%emt 0:03:02]} 22. c4 {[%emt 0:01:37]} Qa5 {[%emt 0:02:16]} 23. f3 {[%emt 0:01:47]} Qa6 {[%emt 0:10:29]} 24. c5 {[%emt 0:03:47]} Qxd3 {[%emt 0:00:08]} 25. Nxd3 {[%emt 0:00:01]} Bf6 {[%emt 0:01:30]} 26. Bf2 {[%emt 0:00:21]} b6 {[%emt 0:00:19]} 27. Rb4 {[%emt 0:01:58]} Nc3 {[%emt 0:00:26]} 28. cxb6 {[%emt 0:00:31]} axb6 {[%emt 0:00:02]} 29. Rxb6 {[%emt 0:00:06]} Nd5 {[%emt 0:00:55]} 30. Rb3 {[%emt 0:01:17]} 1-0

[Event "WYCC 2018 G14"]
[Site "Halkidiki"]
[Date "2018.10.23"]
[Round "5"]
[White "He, Emma"]
[Black "Kouta, Antonia"]
[Result "1/2-1/2"]
[ECO "B50"]
[WhiteElo "1674"]
[BlackElo "1812"]
[Annotator "NA"]
[PlyCount "50"]
[EventDate "2018.10.20"]
[EventType "swiss"]
[EventCountry "GRE"]
[SourceTitle "playchess.com"]
[Source "ChessBase"]
[SourceQuality "1"]
[TimeControl "40/5400+30:1800+30"]

1. e4 {[%emt 0:00:00]} c5 {[%emt 0:00:00]} 2. Nf3 {[%emt 0:00:00]} d6 {[%emt 0:00:00]} 3. c3 {[%emt 0:00:00]} Nf6 {[%emt 0:00:00]} 4. h3 {[%emt 0:00:00]} g6 {[%emt 0:01:00]} 5. Bd3 {[%emt 0:00:21]} Bg7 {[%emt 0:00:43]} 6. Bc2 {[%emt 0:00:30]} e5 {[%emt 0:02:54]} 7. O-O {[%emt 0:01:16]} O-O {[%emt 0:00:51]} 8. d3 {[%emt 0:00:33]} Nc6 {[%emt 0:02:23]} 9. a3 {[%emt 0:02:10]} a5 {[%emt 0:08:58]} 10. a4 {[%emt 0:01:39]} h6 {[%emt 0:05:36]} 11. Be3 {[%emt 0:01:51]} b6 {[%emt 0:05:26]} 12. Na3 {[%emt 0:02:51]} d5 {[%emt 0:04:39]} 13. Nb5 {[%emt 0:08:13]} Be6 {[%emt 0:13:45]} 14. Re1 {[%emt 0:06:06]} Kh7 {[%emt 0:06:22]} 15. Bd2 {[%emt 0:16:31]} Qd7 {[%emt 0:05:41]} 16. Bb3 {[%emt 0:15:41]} Rad8 {[%emt 0:03:15]} 17. Rc1 {[%emt 0:06:25]} Ne8 {[%emt 0:04:43]} 18. d4 {[%emt 0:14:26]} dxe4 {[%emt 0:12:27]} 19. Bxe6 {[%emt 0:02:39]} fxe6 {[%emt 0:09:51]} 20. Rxe4 {[%emt 0:00:54]} exd4 {[%emt 0:00:27]} 21. cxd4 {[%emt 0:07:02]} Nxd4 {[%emt 0:00:50]} 22. Nbxd4 {[%emt 0:01:16]} cxd4 {[%emt 0:00:08]} 23. Qb3 {[%emt 0:00:47]} Qd5 {[%emt 0:08:19]} 24. Qxd5 {[%emt 0:02:18]} exd5 {[%emt 0:00:09]} 25. Rh4 {[%emt 0:01:30]} Rd6 {[%emt 0:02:35]} 1/2-1/2